Cogmind - Beta 15 @@@ ROGUE MODE // 2025.09.10 @ 17:07:42 Player: CatgirlLyra Result: Destroyed by H-81 Overseer with Heavy Linear Accelerator Performance ------------- Evolutions (8) 4000 Regions Visited (8) 1600 Robots Destroyed (46) 230 Value Destroyed (1834) 1834 Prototype IDs (36) 720 Alien Tech Used (0) 0 Bonus (1434) 1434 TOTAL SCORE: 9818 Bonus ------- Follower Combat Kills 701 Registered with UFD 300 Met Optimus in HQ 500 Friendly Fire -67 Cogmind --------- Core Integrity 0/1450 Matter 26/300 Energy 98/100 System Corruption 0% Temperature Cool (0) Movement Core (50) Location -2/Research Parts ------- > --- POWER (2) -------- (None) > --- PROPULSION (8) --- (None) > --- UTILITY (10) ----- (None) > --- WEAPON (3) ------- (None) > --- INVENTORY (5) ---- Heavy Regenerative Plating Advanced Hacking Suite Omega Cannon Peak State ------------ > --- POWER ------------ Graviton Reactor > --- PROPULSION ------- Experimental Cesium-ion Thruster Cooled Field Propulsion Drive Field Propulsion Array Diametric Drive Electron Diverter Cooled Impulse Thruster > --- UTILITY ---------- Experimental Coolant Injector Medium Storage Unit Spectral Analyzer Advanced Sensor Array Advanced Signal Interpreter Advanced Terrain Scan Processor Advanced Transmission Jammer Medium Regenerative Plating System Shield Ghost Barrier > --- WEAPON ----------- Guided Micro-nuke Launcher Thunder Hammer > --- INVENTORY -------- Advanced Energy Well Medium Regenerative Plating Heavy Regenerative Plating Experimental Hardlight Generator Improved Hacking Suite Tachyon Dispersion Ray Omega Cannon Hellfire Missile Launcher [Rating: 159] Favorites ----------- Power Meta Core Engine Ion Engine Power Core Meta Core Reactor Graviton Reactor Propulsion Light Treads Treads Light Treads Leg Aluminum Leg Flight Unit Field Propulsion Array Utility Disposable Heat Sink Device Disposable Heat Sink Storage High-capacity Storage Unit Processor Advanced Signal Interpreter Hackware Ghost Barrier Protection Hardened Medium Armor Plating Weapon Makeshift Laser Energy Gun Makeshift Laser Energy Cannon Subdweller Beam Cannon Ballistic Gun Heavy Assault Rifle Ballistic Cannon Enhanced Gauss Cannon Launcher Tiamat Missile Launcher Special Weapon CPS Tube Impact Weapon Thunder Hammer Piercing Weapon Enhanced Force Lance Special Melee Weapon Dirty Datajack Build | -11 -10 -10 -7 -5 -4 -3 -3 -2 ------- Run | Yrd Mat Sub Scr Fac Fac Res Tes Res Slots Evolved 16 | . . . . 10 2 2 . 2 Power 1 | . . . . 1 . . . . Propulsion 6 | . . . . 3 . 1 . 2 Utility 8 | . . . . 5 2 1 . . Weapon 1 | . . . . 1 . . . . Parts Attached 113 | 6 2 6 7 16 24 20 25 7 Power 10 | 1 . 1 . 3 1 2 1 1 Engine 2 | 1 . . . . 1 . . . Core 5 | . . 1 . 3 . 1 . . Reactor 3 | . . . . . . 1 1 1 Propulsion 27 | 2 . 2 2 3 5 6 4 3 Treads 8 | . . . 2 3 2 . . 1 Leg 4 | 2 . 2 . . . . . . Wheel . | . . . . . . . . . Hover . | . . . . . . . . . Flight 15 | . . . . . 3 6 4 2 Utility 48 | 1 2 1 2 7 9 9 15 2 Device 26 | . 1 1 . 6 5 5 8 . Storage 6 | 1 1 . 1 . 1 1 1 . Processor 6 | . . . . . 2 3 1 . Hackware 4 | . . . . . . . 2 2 Protection 6 | . . . 1 1 1 . 3 . Artifact . | . . . . . . . . . Weapon 28 | 2 . 2 3 3 9 3 5 1 Energy Gun 10 | 1 . 1 2 . 5 . 1 . Energy Cannon 1 | . . 1 . . . . . . Ballistic Gun 5 | 1 . . 1 1 1 1 . . Ballistic Cannon 2 | . . . . . 1 . 1 . Launcher 5 | . . . . 1 1 1 1 1 Special Weapon 1 | . . . . . 1 . . . Impact Weapon 2 | . . . . . . . 2 . Slashing Weapon . | . . . . . . . . . Piercing Weapon 1 | . . . . . . 1 . . Special Melee Weapon 1 | . . . . 1 . . . . Unidentified Prototypes 22 | . . 1 . . . 4 15 2 Corrupted Parts 2 | . . . . 1 1 . . . System Corruption 6 | . . . . 3 3 . . . Parts Lost 39 | . . 2 . 4 15 4 7 7 Power 3 | . . . . . 2 . 1 . Propulsion 12 | . . . . . 3 1 3 5 Utility 15 | . . 1 . 2 7 1 3 1 Weapon 9 | . . 1 . 2 3 2 . 1 Highest Loss Streak 7 | . . 2 . 3 3 2 3 7 To Critical Strikes . | . . . . . . . . . Average Backups 11 | 4 7 9 12 13 11 8 9 6 Power 1 | . 1 1 1 1 2 . . . Propulsion 2 | 2 4 3 2 . 1 1 . . Utility 3 | . 1 2 2 5 2 2 4 3 Weapon 2 | . 1 2 2 3 2 3 3 2 Tool/Special . | . . . . . . . . . Unused Backups 25 | . 2 1 5 . 7 5 3 2 Power 5 | . . 1 1 . 3 . . . Propulsion 6 | . 2 . . . 1 1 1 1 Utility 5 | . . . 1 . 2 1 . 1 Weapon 8 | . . . 3 . 1 2 2 . Tool/Special 1 | . . . . . . 1 . . Average Slot Usage (%) 81 | . 99 81 85 75 75 71 76 55 Engine 1 | . 14 2 . . 1 . . . Core 8 | . . 8 11 9 7 4 2 . Treads 13 | . . . 18 21 10 . . . Leg 5 | . 28 22 3 . . . . . Flight 3 | . . . . . 6 19 21 15 Device 14 | . 13 10 11 21 26 14 22 9 Storage 8 | . 14 11 11 5 3 4 4 2 Processor 1 | . . . . . 2 13 10 9 Protection 4 | . . . 8 1 1 . . 2 Energy Gun 10 | . 14 20 13 9 5 . . . Ballistic Gun 7 | . 14 1 8 5 4 6 . . Peak Build Rating 159 | 6 8 24 34 74 113 139 150 159 Average Rating 49 | 5 7 19 29 64 90 128 125 98 On Entrance 51 | . 6 8 22 34 54 91 120 128 Naked Turns 72 | . . . . . . . . 72 Heaviest Build 99 | 14 20 29 60 99 98 52 43 45 Greatest Support 96 | 20 20 20 40 96 83 52 43 49 Greatest Overweight (x) 5 | 2 . 1 1 1 5 . . 2 Average Overweight (x) . | . . . . . . . . . Largest Inventory Capacity 20 | 8 10 10 20 20 20 10 10 10 Average Capacity 15 | 7 8 10 17 20 15 10 10 8 Most Carried 20 | 7 10 10 20 19 18 10 10 10 Average Carried 11 | 5 7 9 12 13 11 9 9 8 Final Capacity 20 | 8 10 10 20 20 10 10 10 5 Final Carried 20 | 7 10 10 20 18 10 9 10 5 Class Distribution -------------------- 65% | Mutant 9% | Tank 5% | Scavenger-Tank 4% | Scavenger-Gunner 3% | Sprinter 3% | Scout Dominant Class ---------------- Mutant | -10/Materials Mutant | -10/Subcaves Mutant | -7/Scraptown Tank | -5/Factory Scavenger-Tank | -4/Factory Sprinter | -3/Research Ninja | -3/Testing Mutant | -2/Research Resources | -11 -10 -10 -7 -5 -4 -3 -3 -2 ----------- Run | Yrd Mat Sub Scr Fac Fac Res Tes Res Matter Collected 2466 | 269 83 74 220 1006 378 360 64 12 Remotely . | . . . . . . . . . Salvage Created 2192 | 141 207 293 . 789 711 . 51 . Parts 87 | 5 9 12 . 27 33 . 1 . Haulers Intercepted 1 | . 1 . . . . . . . Recyclers Shooed 3 | . 1 . . 2 . . . . Parts Field Recycled 15 | . . . . 15 . . . . Retrieved Matter 289 | . . . . 289 . . . . Parts Self-Destructed . | . . . . . . . . . Prevented . | . . . . . . . . . Kills | -11 -10 -10 -7 -5 -4 -3 -3 -2 ------- Run | Yrd Mat Sub Scr Fac Fac Res Tes Res Combat Hostiles Destroyed 31 | . 2 6 . 8 15 . . . Guns 21 | . 2 4 . 6 9 . . . Cannons 4 | . . 2 . . 2 . . . AOE 6 | . . . . 2 4 . . . Classes Destroyed 17 | 2 3 1 . 7 3 . 1 . Worker 2 | . . . . 1 1 . . . Builder 1 | . . . . 1 . . . . Tunneler 2 | 2 . . . . . . . . Hauler 1 | . 1 . . . . . . . Recycler 5 | 1 1 . . 3 . . . . Operator 1 | . . . . . 1 . . . Watcher 2 | . 1 . . 1 . . . . Swarmer 6 | . . . . . 6 . . . Cutter 2 | . . . . 2 . . . . Grunt 7 | . 2 . . 2 3 . . . Duelist 1 | . . . . 1 . . . . Researcher 1 | . . . . . . . 1 . Sentry 2 | . . . . . 2 . . . Hunter 3 | . . . . 1 2 . . . Programmer 3 | . . . . 1 2 . . . Subdweller 6 | . . 6 . . . . . . Scrapoid 1 | . . . . 1 . . . . Best Kill Streak 6 | 3 3 3 . 5 6 . 1 . Combat Bots Only 5 | . 2 3 . 3 5 . . . Max Kills in Single Turn 5 | 1 1 1 . 2 5 . 1 . Gunslinging . | . . . . . . . . . Exploded 4 | . . . . 2 4 . . . Melee . | . . . . . . . . . Uniques/NPCs Destroyed . | . . . . . . . . . Combat | -11 -10 -10 -7 -5 -4 -3 -3 -2 -------- Run | Yrd Mat Sub Scr Fac Fac Res Tes Res Hostile Shots Fired 723 | . 6 38 . 63 205 101 96 214 Missed 313 | . 2 12 . 12 80 60 59 88 Hits 410 | . 4 26 . 51 125 41 37 126 Melee 8 | . . . . 8 . . . . Projectile 402 | . 4 26 . 43 125 41 37 126 AOE 2 | . . . . 2 . . . . Critical Strikes 26 | . . . . 8 6 4 3 5 Part Disruptions 1 | . . . . . . 1 . . Damage Taken 9313 | . 80 628 . 1277 2337 996 975 3020 Core 2462 | . 35 209 . 156 160 141 227 1534 Absorbed by Shields 176 | . . . . 60 116 . . . Ignored by Resistances 40 | . . . . . 40 . . . Regen/Repaired (Parts) 466 | . . . . 311 61 9 5 80 Core Remaining (%) 68 | 100 . . 2 84 86 . 71 . Volleys Fired 140 | 3 22 27 . 28 42 11 . 7 Largest 3 | 2 2 3 . 3 3 2 . 1 Hottest 180 | 70 70 180 . 153 156 70 . 80 Shots Fired 314 | 6 44 61 . 80 99 17 . 7 Gun 294 | 6 44 54 . 79 87 17 . 7 Cannon 17 | . . 7 . . 10 . . . Launcher 3 | . . . . 1 2 . . . Special . | . . . . . . . . . Kinetic 113 | 3 22 7 . 28 36 17 . . Thermal 168 | 3 22 54 . 51 38 . . . Explosive 3 | . . . . 1 2 . . . Electromagnetic 30 | . . . . . 23 . . 7 Robot Hit Streak 24 | 6 10 19 . 20 24 3 . 5 Robot Miss Streak 5 | . 5 3 . 3 2 1 . 1 Penetration Max 1 | . . . . . 1 . . . Secondary Targets 3 | . . . . 1 2 . . . Max Gunslinging Chain 1 | . . . . 1 1 . . . Shots Hit Robots 228 | 6 20 47 . 60 76 7 1 11 Core Hits 104 | 4 9 13 . 39 36 1 . 2 Critical Kills 2 | . . . . 1 1 . . . Critical Parts Destroyed . | . . . . . . . . . Critical Strikes 10 | 2 . 4 . 1 3 . . . Burn 7 | 2 . 4 . . 1 . . . Destroy 2 | . . . . 1 1 . . . Blast 1 | . . . . . 1 . . . Melee Attacks 22 | . . . . 1 . 3 8 10 Impact 18 | . . . . . . . 8 10 Slashing . | . . . . . . . . . Piercing 4 | . . . . 1 . 3 . . Sneak Attacks 4 | . . . . . . . 1 3 Combat Hostiles 3 | . . . . . . . . 3 Follow-up Attacks . | . . . . . . . . . Damage Inflicted 5888 | 75 289 631 . 1380 2636 199 110 568 Guns 3805 | 75 289 525 . 1263 1371 199 . 83 Cannons 332 | . . 106 . . 226 . . . Explosions 1147 | . . . . 108 1039 . . . Melee 598 | . . . . 3 . . 110 485 Ramming 6 | . . . . 6 . . . . Kinetic 1519 | 36 166 87 . 359 672 199 . . Thermal 3244 | 39 123 544 . 904 1634 . . . Explosive 208 | . . . . 108 100 . . . Electromagnetic 313 | . . . . . 230 . . 83 Impact 595 | . . . . . . . 110 485 Slashing . | . . . . . . . . . Piercing 3 | . . . . 3 . . . . Highest Corruption 8 | . . . . 6 8 4 4 . Average Corruption 3 | . . . . 2 5 3 4 . Corruption Purged . | . . . . . . . . . Corruption Blocked . | . . . . . . . . . Effects 30 | . . . . 10 8 6 6 . Message Errors 9 | . . . . 4 2 2 1 . Matter Fused 10 | . . . . 4 3 2 1 . Heat Flow Errors 2 | . . . . . 1 1 . . Energy Discharges 1 | . . . . 1 . . . . Data Loss (minor) 6 | . . . . . 2 1 3 . Misfires 1 | . . . . 1 . . . . Alerts 1 | . . . . . . . 1 . Overload Shots . | . . . . . . . . . Overflow Damage 208 | . . . . 9 99 . 100 . Projectiles . | . . . . . . . . . Explosions 108 | . . . . 9 99 . . . Melee 100 | . . . . . . . 100 . Knockbacks 2 | . . . . . 1 . 1 . Impact 1 | . . . . . . . 1 . Kinetic 1 | . . . . . 1 . . . Secondary . | . . . . . . . . . Self-Inflicted Damage 177 | . 35 . . 48 94 . . . Shots 4 | . 1 . . 1 2 . . . Rammed 2 | . . . . 1 . . . 1 Targets Rammed 2 | . . . . 1 . . . 1 Kicked . | . . . . . . . . . Crushed . | . . . . . . . . . Highest Temperature 235 | 27 60 187 . 199 235 180 15 97 Average Temperature 49 | 14 20 89 . 88 32 92 7 33 Received Heat Transfer 1145 | . 24 174 . 386 219 75 33 234 Siege Activations . | . . . . . . . . . Martial Activations . | . . . . . . . . . Shielding Activations . | . . . . . . . . . Robots Disrupted 3 | . . . . . 1 . . 2 Combat Hostiles 3 | . . . . . 1 . . 2 Robots Corrupted 1 | . . . . . . . 1 . Combat Hostiles . | . . . . . . . . . Parts Fried . | . . . . . . . . . Impact Corruptions 3 | . . . . . . . 3 . Robots Melted . | . . . . . . . . . Combat Hostiles . | . . . . . . . . . Parts Melted 28 | . . 11 . 13 4 . . . Heat Transferred 5903 | 259 370 1739 . 1682 1853 . . . Parts Sabotaged . | . . . . . . . . . Parts Stolen . | . . . . . . . . . Parts Stripped . | . . . . . . . . . Power Chain Reactions 1 | . . . . . 1 . . . Alert | -11 -10 -10 -7 -5 -4 -3 -3 -2 ------- Run | Yrd Mat Sub Scr Fac Fac Res Tes Res Maximum Alert Level 2 | . . . . . 1 2 2 1 Low Security (%) 73 | 100 100 . . 100 91 59 . 4 Level 1 22 | . . . . . 8 27 85 95 Level 2 3 | . . . . . . 13 14 . Level 3 . | . . . . . . . . . Level 4 . | . . . . . . . . . Level 5 . | . . . . . . . . . High Security . | . . . . . . . . . Max Security . | . . . . . . . . . Peak Influence 627 | 10 54 . . 145 330 627 503 283 Initial 281 | . . . . . 67 147 281 211 Average 116 | 1 16 . . 32 66 216 352 242 Influence Increases 2816 | 15 132 . . 427 699 850 466 227 Destroy 0b10 Robot/C 820 | . 40 . . 260 320 180 20 . Destroy 0b10 Robot/NC 80 | 15 15 . . 30 10 10 . . Destroy Leader 146 | . 14 . . 52 60 20 . . Allied During Kill 153 | . . . . 75 2 76 . . Successful Hack 56 | . 16 . . . 11 15 9 5 Select Force Hacks 50 | . . . . . 50 . . . Disable Machine 255 | . 15 . . . 75 45 105 15 Destroy Structure 146 | . 32 . . 10 66 24 2 12 Partial Spotted 315 | . . . . . 45 165 15 90 Lose Combat Pursuer 795 | . . . . . 60 315 315 105 Influence Decreases 2578 | 15 103 29 . 288 557 630 590 366 Entered New Map 607 | . . 15 . . 72 134 220 166 Time Decay 1202 | 15 103 14 . 228 316 246 150 130 Search Patrol Dispatched 300 | . . . . . . 150 150 . Lost Part 340 | . . . . 20 140 40 70 70 Lost Ally 129 | . . . . 40 29 60 . . Squads Dispatched 30 | . 1 . . 3 12 7 3 4 Investigation 7 | . . . . . 2 4 . 1 Extermination 8 | . . . . 1 3 2 1 1 Reinforcement 9 | . 1 . . 2 1 1 2 2 Assault . | . . . . . . . . . Garrison 6 | . . . . . 6 . . . Intercept . | . . . . . . . . . Searches Triggered 2 | . . . . . . 1 1 . Construction Impeded 2 | . . . . . 1 1 . . Haulers Reinforced . | . . . . . . . . . Active Scanning Responses . | . . . . . . . . . Cargo Convoy Interrupts . | . . . . . . . . . Stealth | -11 -10 -10 -7 -5 -4 -3 -3 -2 --------- Run | Yrd Mat Sub Scr Fac Fac Res Tes Res Distress Signals 6 | . . . . . 2 4 . . Communications Jammed 19 | . . . . . . 5 13 1 Distress Signals 19 | . . . . . . 5 13 1 Times Spotted 178 | . 7 7 . 14 46 50 32 22 Peak Tracking Total 16 | . 2 2 . 4 11 16 13 14 Tactical Retreats 26 | . . . . . 7 8 7 4 Traps | -11 -10 -10 -7 -5 -4 -3 -3 -2 ------- Run | Yrd Mat Sub Scr Fac Fac Res Tes Res Traps Triggered 5 | . . . . . 3 . . 2 Indirectly . | . . . . . . . . . Trap Hack Attempts . | . . . . . . . . . Triggered . | . . . . . . . . . Disarmed . | . . . . . . . . . Reprogrammed . | . . . . . . . . . Reused . | . . . . . . . . . Traps Extracted . | . . . . . . . . . Installed . | . . . . . . . . . Triggered . | . . . . . . . . . Machines | -11 -10 -10 -7 -5 -4 -3 -3 -2 ---------- Run | Yrd Mat Sub Scr Fac Fac Res Tes Res Machines Disabled 17 | . 1 . . . 5 3 7 1 Max in Single Turn 4 | . 1 . . . 4 1 1 1 Garrison Access 1 | . . . . . . 1 . . Machines Repaired . | . . . . . . . . . Machines Dismantled . | . . . . . . . . . Machines Sabotaged . | . . . . . . . . . Overloaded Fab Kills 1 | . . . . . 1 . . . Hacking | -11 -10 -10 -7 -5 -4 -3 -3 -2 --------- Run | Yrd Mat Sub Scr Fac Fac Res Tes Res Machines Accessed 38 | . 2 . 6 1 8 13 4 4 Terminals 19 | . 2 . . . 4 7 4 2 Fabricators 2 | . . . . . 2 . . . Repair Stations 2 | . . . . 1 . 1 . . Recycling Units 6 | . . . . . 1 3 . 2 Scanalyzers . | . . . . . . . . . Garrison Access 3 | . . . . . 1 2 . . Total Hacks 91 | . 7 . 31 4 12 21 10 6 Successful 56 | . 4 . 31 4 5 7 3 2 Failed 35 | . 3 . . . 7 14 7 4 Catastrophic 15 | . . . . . 3 8 2 2 Database Lockouts . | . . . . . . . . . Manual 14 | . 2 . . . 4 5 . 3 Terminals 40 | . 7 . . . 7 13 10 3 Fabricators 3 | . . . . . 3 . . . Repair Stations 5 | . . . . 4 . 1 . . Recycling Units 8 | . . . . . 1 4 . 3 Scanalyzers . | . . . . . . . . . Garrison Access 4 | . . . . . 1 3 . . Terminal Hacks 45 | . 4 . 31 . 3 3 3 1 Record 23 | . . . 22 . . 1 . . Part Schematic 1 | . . . . . . . 1 . Robot Analysis 9 | . 1 . 8 . . . . . Prototype ID Bank 3 | . 2 . . . 1 . . . Open Door 1 | . . . . . . . 1 . Open DSF 2 | . . . . . . 1 . 1 Terminal Index 2 | . 1 . . . 1 . . . Locate Traps 1 | . . . . . . 1 . . Zone Layout 1 | . . . . . 1 . . . Proto ID Catalog 1 | . . . 1 . . . . . Protovariant Controls 1 | . . . . . . . 1 . Fabricator Hacks . | . . . . . . . . . Repair Station Hacks 4 | . . . . 4 . . . . Scan Component 2 | . . . . 2 . . . . Repair 2 | . . . . 2 . . . . Recycling Unit Hacks . | . . . . . . . . . Scanalyzer . | . . . . . . . . . Garrison Access Hacks 1 | . . . . . . 1 . . Seal Access 1 | . . . . . . 1 . . Unauthorized Hacks 6 | . . . . . 2 3 . 1 Terminals . | . . . . . . . . . Fabricators 1 | . . . . . 1 . . . Overload 1 | . . . . . 1 . . . Repair Stations . | . . . . . . . . . Recycling Units 5 | . . . . . 1 3 . 1 Fedlink 4 | . . . . . 1 2 . 1 Scrapoids 1 | . . . . . . 1 . . Scanalyzers . | . . . . . . . . . Garrison Access . | . . . . . . . . . Data Cores Recovered 1 | . . . . . 1 . . . Used . | . . . . . . . . . Hacking Detections 23 | . 2 . . . 6 11 2 2 Full Trace Events 1 | . . . . . . 1 . . Feedback Events . | . . . . . . . . . Feedback Blocked . | . . . . . . . . . Robot Schematics Acquired 1 | . . . . . . . 1 . Robots Built . | . . . . . . . . . Authchips . | . . . . . . . . . Time . | . . . . . . . . . Total Robot Build Rating . | . . . . . . . . . Part Schematics Acquired 3 | . . . . . . . 3 . Parts Built . | . . . . . . . . . Authchips . | . . . . . . . . . Time . | . . . . . . . . . Total Part Build Rating . | . . . . . . . . . Parts Repaired 2 | . . . . 2 . . . . Time 64 | . . . . 64 . . . . Parts Recycled . | . . . . . . . . . Recycled Matter . | . . . . . . . . . Retrieved Matter . | . . . . . . . . . Retrieved Components . | . . . . . . . . . Parts Scanalyzed . | . . . . . . . . . Part Schematics Acquired . | . . . . . . . . . Parts Damaged . | . . . . . . . . . Bothacking | -11 -10 -10 -7 -5 -4 -3 -3 -2 ------------ Run | Yrd Mat Sub Scr Fac Fac Res Tes Res Used RIF Installer . | . . . . . . . . . Robots Hacked . | . . . . . . . . . Non-combat . | . . . . . . . . . Combat . | . . . . . . . . . Robot Hacks Applied . | . . . . . . . . . Relay Couplers Released . | . . . . . . . . . Fabnet Peak Effective % . | . . . . . . . . . Robots Rewired . | . . . . . . . . . Allies Hacked 2 | . . . . . . 2 . . Hacks Repelled . | . . . . . . . . . Allies | -11 -10 -10 -7 -5 -4 -3 -3 -2 -------- Run | Yrd Mat Sub Scr Fac Fac Res Tes Res Total Allies 10 | . . . . 5 . 5 . . Largest Group 5 | . . . . 5 2 5 . . Highest-Rated Group 320 | . . . . 235 94 320 . . Highest-Rated Ally 64 | . . . . 47 47 64 . . Total Orders . | . . . . . . . . . Ally Attacks 84 | . . . . 33 7 44 . . Total Damage 2103 | . . . . 621 111 1371 . . Kills 17 | . . . . 5 1 11 . . Allies Corrupted . | . . . . . . . . . Allies Melted . | . . . . . . . . . Intel | -11 -10 -10 -7 -5 -4 -3 -3 -2 ------- Run | Yrd Mat Sub Scr Fac Fac Res Tes Res Active Infowar (turns) 1757 | . 411 68 . . 260 511 315 192 Optics 316 | . . . . . . . 124 192 Sensors 670 | . . . . . . 204 274 192 Terrain 739 | . . . . . 90 373 276 . Seismic 479 | . 411 68 . . . . . . Jamming 563 | . . . . . . 59 315 189 ECM 490 | . . . . . 170 320 . . Robot Analysis Total 9 | . 1 . 8 . . . . . Derelict Logs Recovered 3 | . . 1 2 . . . . . Drone Launches . | . . . . . . . . . Drone Recoveries . | . . . . . . . . . Exploration | -11 -10 -10 -7 -5 -4 -3 -3 -2 ------------- Run | Yrd Mat Sub Scr Fac Fac Res Tes Res Turns Passed 8144 | 94 417 569 4372 862 723 528 315 264 Spaces Moved 6426 | 58 225 266 1960 372 692 1449 852 552 Core 147 | 11 . . . . . . . 136 Treads 2052 | . . . 1551 372 126 . . 3 Legs 947 | 47 225 266 409 . . . . . Wheels . | . . . . . . . . . Hover . | . . . . . . . . . Flight 3280 | . . . . . 566 1449 852 413 Fastest Speed 19 | 50 120 120 160 152 34 19 23 19 Average Speed 109 | 114 120 177 221 173 70 27 25 29 Slowest Speed 440 | 150 120 190 240 220 440 31 28 225 Overloaded Moves 492 | . . . . . . 375 110 7 Propulsion Burnouts . | . . . . . . . . . Robots Hopped 77 | . . . . . 11 27 33 6 Potential Cave-ins . | . . . . . . . . . Cave-ins Triggered . | . . . . . . . . . Exploration Rate (%) 35 | 3 44 12 91 6 20 37 84 18 Regions Visited 8 Branch Regions 3 Pre-discovered Areas 3 | . . . 2 . . 1 . . Known Exits Taken 2 | . . . . . . 1 1 . Unknown Exits Taken 6 | 1 1 1 1 1 1 . . . Scrap Searched 7 | . . . 7 . . . . . Spaces Dug 23 | . . . . . 15 3 1 4 Terrain Destroyed 82 | . 31 . . . 42 4 1 4 Melee 8 | . . . . . . 3 1 4 Projectile 6 | . . . . . 5 1 . . AOE 68 | . 31 . . . 37 . . . Terrain Rammed . | . . . . . . . . . Walls Destroyed . | . . . . . . . . . Machines Disabled . | . . . . . . . . . Actions | -11 -10 -10 -7 -5 -4 -3 -3 -2 --------- Run | Yrd Mat Sub Scr Fac Fac Res Tes Res Total 7129 | 77 329 308 2001 518 836 1532 903 625 Wait 253 | 3 73 1 8 75 29 38 18 8 Move 6270 | 57 224 265 1959 371 670 1397 787 540 Hop 71 | . . . . . 10 24 31 6 Pick Up 86 | 8 5 4 16 13 11 13 10 6 Fast Attach 73 | 5 1 3 4 4 17 13 17 9 Attach 37 | 1 . 1 1 12 9 7 3 3 Detach 9 | . . . . . 1 1 5 2 Swap 28 | . 1 2 2 9 3 5 5 1 Drop 95 | . 3 5 11 3 27 18 19 9 Fire 140 | 3 22 27 . 28 42 11 . 7 Melee 22 | . . . . 1 . 3 8 10 Ram 1 | . . . . . . . . 1 Kick . | . . . . . . . . . Crush 1 | . . . . 1 . . . . Escape Stasis 25 | . . . . . 17 . . 8 Rewire 18 | . . . . 1 . 2 . 15 Trap . | . . . . . . . . . Miscellaneous . | . . . . . . . . . Route ------- -11/Scrapyard -10/Materials (discovered 3 exits: [*Mat] / [*Min] / [*Sub]) -10/Subcaves (discovered 2 exits: *Mat / *Scr) -7/Scraptown (discovered 2 exits: *Fac x2) -5/Factory -4/Factory -3/Research (discovered 2 exits: *Tes x2) -3/Testing -2/Research (discovered 1 exit: Qua) History --------- Turn | Location | Event 34 | -11/Scrapyard | Discovered new exit (range 15) 95 | -11/Scrapyard | Entered Materials 310 | -10/Materials | Build established: Mutant 443 | -10/Materials | Discovered new exit (range 12) 497 | -10/Materials | Discovered new exit (range 16) 505 | -10/Materials | Discovered new exit (range 7) 512 | -10/Materials | Entered Subcaves 513 | -10/Subcaves | Approached by a straggling Scientist 563 | -10/Subcaves | A Subdweller sparked back to life 563 | -10/Subcaves | A Subdweller sparked back to life 563 | -10/Subcaves | A Subdweller sparked back to life 612 | -10/Subcaves | Found Prototype Power Core 612 | -10/Subcaves | Identified Meta Core 614 | -10/Subcaves | Attached Meta Core, gained temporary slots: Propulsion, Utility, Weapon 739 | -10/Subcaves | A swath of the cavern ceiling suddenly collapsed 745 | -10/Subcaves | Core integrity fell below 50% 802 | -10/Subcaves | Identified exit to Materials 805 | -10/Subcaves | Core integrity fell below 20% 1051 | -10/Subcaves | Scientist uncovered a shortcut to Scraptown 1081 | -10/Subcaves | Entered Scraptown 1539 | -7/Scraptown | Scanned Subdweller tech in exchange for log data 1544 | -7/Scraptown | Learned Factory trap positions 1580 | -7/Scraptown | Discovered new exit (range 3) 1791 | -7/Scraptown | Visited Cyclists 1842 | -7/Scraptown | Visited Bundlers 2044 | -7/Scraptown | Visited Red Mages 2379 | -7/Scraptown | Visited Shadow of the Wyrm 2448 | -7/Scraptown | Visited Spacefarers 2554 | -7/Scraptown | Visited IN-MT5's Study 3290 | -7/Scraptown | Visited The Evicted 3340 | -7/Scraptown | Visited UFD Registry 3340 | -7/Scraptown | Registered with UFD as "Pipeglider" 3393 | -7/Scraptown | Visited Curators Association 3477 | -7/Scraptown | Visited Science Guys 4076 | -7/Scraptown | Entered Cyclist Reading Room 4081 | -7/Scraptown | Learned location of Zion (-7) 4266 | -7/Scraptown | Visited Chapter 10 4412 | -7/Scraptown | Visited Scrapoid Pod Storage 4424 | -7/Scraptown | Found Scrapoid Pod 4469 | -7/Scraptown | Visited Junk Repository 4552 | -7/Scraptown | Visited Analyses Database 4607 | -7/Scraptown | Visited Observation Area 4931 | -7/Scraptown | Found Scrap Suit 4983 | -7/Scraptown | Discovered new exit (range 5) 5309 | -7/Scraptown | Met Optimus 5309 | -7/Scraptown | Accepted into 0bPrime 5453 | -7/Scraptown | Entered Factory 5453 | -5/Factory | Evolved 10 slots: Power x1, Propulsion x3, Utility x5, Weapon x1 5454 | -5/Factory | Loaded intel: 88 trap records 5665 | -5/Factory | Lost 3 parts (2u1w) 5899 | -5/Factory | Scrapoid Pod released 05F05-D (x5) 5909 | -5/Factory | Repaired Lgt. Treads 5948 | -5/Factory | Repaired Ovr. Treads 6045 | -5/Factory | Build established: Tank 6133 | -5/Factory | P-70 Sage assimilated allied 05F02-D 6221 | -5/Factory | Discovered new exit (range 6) 6315 | -5/Factory | Entered another Factory area 6315 | -4/Factory | Accompanied by 2 allies 6315 | -4/Factory | Evolved 2 slots: Utility x2 6424 | -4/Factory | Garrison activated, responded to threat 6493 | -4/Factory | Lost 3 parts (1n1u1w) 6592 | -4/Factory | Build established: Scavenger-Tank 6740 | -4/Factory | Lost 3 parts (2n1u) 6792 | -4/Factory | Garrison activated, responded to threat 6818 | -4/Factory | Lost 3 parts (1p2u) 6833 | -4/Factory | Found Quantum Capacitor 6937 | -4/Factory | Loaded intel: 8 recycling unit locations 7011 | -4/Factory | Lost 3 parts (1p1u1w) 7035 | -4/Factory | Discovered new exit (range 10) 7038 | -4/Factory | Entered Research 7038 | -3/Research | Evolved 2 slots: Propulsion x1, Utility x1 7068 | -3/Research | Lost 3 parts (2u1w) 7203 | -3/Research | Spotted B-86 Titan 7340 | -3/Research | Scrapoid reinforcements arrived 7341 | -3/Research | P-80 Master assimilated allied 03R08-D 7351 | -3/Research | P-80 Master assimilated allied 03R10-D 7357 | -3/Research | Found Scrap Suit 7381 | -3/Research | Discovered new exit (range 15) 7414 | -3/Research | Lost 3 allies 7464 | -3/Research | Spotted B-86 Titan 7481 | -3/Research | Loaded intel: 5 recycling unit locations 7481 | -3/Research | Learned location of Protoforge (-2) 7538 | -3/Research | Search patrols dispatched 7555 | -3/Research | Discovered new exit (range 10) 7557 | -3/Research | Identified exit to Testing 7566 | -3/Research | Entered Testing 7598 | -3/Testing | Lost 3 parts (1u2w) 7618 | -3/Testing | Found Prototype Energy Gun 7618 | -3/Testing | Identified Tachyon Dispersion Ray 7633 | -3/Testing | Spotted PX-HUC5SFVHDV 7651 | -3/Testing | Found Prototype Hackware 7660 | -3/Testing | Found Prototype Device 7660 | -3/Testing | Identified Exp. Hardlight Generator 7675 | -3/Testing | Found Prototype Ballistic Cannon 7675 | -3/Testing | Identified Omega Cannon 7687 | -3/Testing | Found Prototype Launcher 7687 | -3/Testing | Identified Hellfire Missile Launcher 7747 | -3/Testing | Identified Ghost Barrier 7757 | -3/Testing | Found Prototype Processor 7757 | -3/Testing | Identified Spectral Analyzer 7816 | -3/Testing | Search patrols dispatched 7860 | -3/Testing | Found Prototype Protection 7860 | -3/Testing | Identified Hvy. Regenerative Plating 7862 | -3/Testing | Found Prototype Protection 7862 | -3/Testing | Identified Med. Regenerative Plating 7864 | -3/Testing | Found Med. Regenerative Plating 7873 | -3/Testing | Discovered new exit (range 15) 7876 | -3/Testing | Identified exit to Research 7881 | -3/Testing | Entered Research 7881 | -2/Research | Evolved 2 slots: Propulsion x2 7882 | -2/Research | Identified exit to Quarantine 7906 | -2/Research | Identified exit to DSF 7977 | -2/Research | Found Prototype Launcher 7977 | -2/Research | Identified Gui. Micro-nuke Launcher 7989 | -2/Research | Loaded intel: 5 recycling unit locations 8073 | -2/Research | Released all parts (12) 8095 | -2/Research | Lost 7 parts (5n1u1w) 8123 | -2/Research | Core integrity fell below 50% 8134 | -2/Research | Core integrity fell below 20% 8145 | -2/Research | Destroyed by H-81 Overseer with Heavy Linear Accelerator Last Messages --------------- 08073_ Released Ghost Barrier. 08073_ Released Spectral Analyzer. 08073_ Released Thunder Hammer. 08073_ Slug penetrates Wall. 08074_ Acquired Adv. Sensor Array. 08075_ Penetrated by Slug. 08076_ Extracted 11 energy. 08104_ Dropped Adv. Sensor Array. 08105_ Acquired Adv. Hacking Suite. 08114_ S-43 Plague suffers critical hit (Burn). 08121_ U-05 Engineer destroyed. 08123_ Acquired 12 matter. 08133_ Penetrated by Slug. 08136_ A-15 Conveyor destroyed. 08137_ K-01 Serf collects debris. 08138_ ALERT: Suspicious intruders detected, dispatching Cutter reinforcements to area. 08139_ Slammed into U-05 Engineer. 08139_ Slug penetrates Wall. 08141_ K-01 Serf collects debris. Map ----- +----------------------------------------------------+ | ???????????????????????????????????????????????? | | ???????????????????????????????????????????????? | | ???????????????????????????????????????????????? | | ???????????????????????????????????????????????? | | ???????????????????????????????????????????????? | | ???????????????????????????????????????????????? | | ???????????????????????????????????????????????? | | ???????????????????????????????????????????????? | | ???????????????????????????????????????????????? | | ???????????????????????????????????????????????? | | ???????????????????????????????????????????????? | | ???????????????????????????????????????????????? | | ????????????????????????? ?????????????????????? | | ????????????????????????? ?????????????????????? | | ????????????????????????? ?????????????????????? | | ????????????????????????? ?????????????????????? | | ????????????????????????# #????????????????????? | | ???????????????????????? ????????????????????? | | ???????????????????????? " ????????????????????? | | ????????????????????????k ????????????????????? | | ????????????????????????#k#????????????????????? | | ????????????????????????#u#????????????????????? | | ????????????????????????# #????????????????????? | | ????????????????????????# #????????????????????? | | ##########?????###????### ###??????????????????? | | #?????# ??#% @ #??????????????????? | | #?????# # ##+######??????????? | | "" #?????# /u H #????????? | | "T #?????# = # #######+#??????????? | | "" #?????# ?# u #??????????????????? | | ? #?????# ??## ;#??????????????????? | | ??? ?##########????# % ##??????????????????? | | #####+#### #?????#s #???????????????????? | | #######u #???????????????????? | | s #???????????????????? | | ! #??????+??##########? | | !! #?????? ??# #? | | /%/ ###########?????? ??# #? | | ##########! #?????????????### ??# = #? | | ?????????####+####?????????????# ]??# #? | | ??????????? ???????????????# ###+##+##?? | | ?????????# ?????????????+ #??? | | ?????????# #????????????# ### #??? | | ?????????#] """#????????????? ????# #??? | | ?????????# """#?????????????# #????# #??? | | ?????????# """#?????????????# #????#### #??? | | ?????????# #?????????????# #???????# #??? | | ?????????# ???????????????# #???????# #??? | | ?????????# ???????????????# ######### #??? | | ?????????########??????????######+# #T>## #??? | +----------------------------------------------------+ Best States ------------- Heat Dissipation 175 Coolant Potential 240 Energy Generation 47 Energy Capacity 920 Matter Stores 300 Matter Capacity 300 Sight Range 24 Robot Scan Range 16 Terrain Scan Range 24 Terrain Scan Density 210 ECM Strength 1 Jamming Range 16 Armor Coverage 450 Resistance: KI 20 Resistance: EX 50 Evasion (%) 66 Melee Accuracy 8 Target Analysis 6 Recoil Reduction 5 Offensive Hacking 12 Defensive Hacking 30 Item Schematics ----------------- Lgt. Regenerative Plating | -3/Testing | Hacked Centrium Light Armor Plating | -3/Testing | Archive Exp. Utility Shielding | -3/Testing | Archive Robot Schematics ------------------ A-27 Freighter | -3/Testing | Archive Fabricated ------------ Nothing Repaired ---------- Lgt. Treads | 2% | -5/Factory Ovr. Treads | 29% | -5/Factory Alien Tech Used ----------------- None Achievements -------------- Ride The Lightning Challenges ------------ None Game ------ Seed IonicExperimentalShielding Manual? 0 Play Time 01:44:20 Cumulative 102.8 hours Start 2025.09.08 @ 17:02:20 End 2025.09.10 @ 17:07:42 Sessions 3 Manual Loads 0 Difficulty Rogue Special Mode None Game No. 57 Rogue 57 Adventurer 0 Explorer 0 Win Type - Total 3 Types 1/0/0/2/0/0/0/0/0/0 Lore% 52 Gallery% 59 Achievement% 56 Wizard Run 0 Options --------- Layout 1 ASCII 0 Keyboard 0 Movement Numpad Keybinds 0 Fullscreen 1 Font 32/Tamsyn Map View 50x40 Zoom Use 0% Tactical HUD 1 Map Filters NONE Filters NONE Steam 1 RUN: fd44d993-cc9c-40d5-b3cc-830eb17b308b